bitfinex-derivatives/quotes_BNBF0:USTF0_20250115
["timestamp","ask_amount","ask_price","bid_price","bid_amount"]
[1736922720375,1.06693619,699.67,698.77,0.28621721]
[1736922721470,1.06693619,699.68,698.77,0.28621721]
[1736922721877,1.32593619,699.68,698.77,0.28621721]
[1736922722272,1.06693619,699.66,698.77,0.28621721]
[1736922723574,1.06693619,699.65,698.77,0.28621721]
[1736922724380,1.06693619,699.64,698.77,0.28621721]
[1736922725885,1.06693619,699.63,698.77,0.28621721]
[1736922726919,1.06693619,699.62,698.77,0.28621721]
[1736922728910,0.807,699.63,698.77,0.28621721]
[1736922729905,1.87393619,699.63,698.77,0.28621721]
[1736922731003,1.06693619,699.61,698.77,0.28621721]
[1736922732294,0.807,699.63,698.77,0.28621721]
[1736922737191,1.06693619,699.59,698.77,0.28621721]
[1736922738287,0.807,699.63,698.77,0.28621721]
[1736922741794,0.807,699.63,698.37,1.07144312]
[1736922742094,0.807,699.63,698.38,1.35782016]
[1736922742293,0.807,699.63,698.39,0.28637294]
[1736922753109,1.066,699.63,698.39,0.28637294]
[1736922758709,1.06693619,699.62,698.43,1.07144312]
[1736922759512,1.06693619,699.61,698.44,1.07144312]
[1736922760111,1.92193619,699.61,698.44,1.07144312]
[1736922760513,1.06693619,699.6,698.46,1.07144312]
[1736922761810,1.06693619,699.59,698.48,1.07144312]
[1736922762913,0.855,699.61,698.39,0.28637294]
[1736922769325,1.114,699.61,698.39,0.28637294]
[1736922771418,1.06693619,699.57,698.39,0.28637294]
[1736922772324,1.06693619,699.56,698.39,0.28637294]
[1736922773123,1.06693619,699.58,698.39,0.28637294]
[1736922774324,2.18093619,699.61,698.39,0.28637294]
[1736922775421,1.114,699.61,698.39,0.28637294]
[1736922778727,2.18093619,699.61,698.39,0.28637294]
[1736922780522,1.06693619,699.6,698.39,1.35781606]
[1736922781632,1.06693619,699.59,698.39,0.28637294]
[1736922781927,1.92193619,699.59,698.39,0.28637294]
[1736922782929,0.855,699.59,698.39,0.28637294]
[1736922784026,1.06693619,699.58,698.41,1.07144312]
[1736922785225,1.06693619,699.58,698.42,1.07144312]
[1736922786025,0.855,699.59,698.41,1.07144312]
[1736922788345,0.855,699.59,698.42,1.07144312]
[1736922792829,0.855,699.59,698.39,0.28637294]
[1736922794939,0.855,699.59,698.44,1.07144312]
[1736922796039,0.855,699.59,698.45,1.07144312]
[1736922797240,0.855,699.59,698.39,0.28637294]
[1736922797241,0.855,699.59,698.44,1.07144312]
[1736922797439,1.114,699.59,698.44,1.07144312]
[1736922798240,1.114,699.59,698.4,1.07144312]
[1736922799538,1.114,699.59,698.41,1.07144312]
[1736922800737,1.114,699.59,698.39,0.28637294]
[1736922800738,1.114,699.59,698.4,1.07144312]
[1736922801943,1.114,699.59,698.51,1.07144312]
[1736922803645,1.114,699.59,698.49,1.07144312]
[1736922805050,1.114,699.59,698.51,1.07144312]
[1736922806046,1.114,699.59,698.54,1.07144312]
[1736922807153,1.114,699.59,698.55,1.07144312]
[1736922808252,1.114,699.59,698.56,1.07144312]
[1736922812655,1.114,699.59,698.55,1.07144312]
[1736922813558,1.06693619,699.58,698.54,1.07144312]
[1736922814358,1.06693619,699.58,698.55,1.07144312]
[1736922814954,1.92093619,699.58,698.55,1.07144312]
[1736922815353,1.92093619,699.58,698.56,1.07144312]
[1736922816459,1.92093619,699.58,698.47,1.07144312]
[1736922816460,1.92093619,699.58,698.55,1.07144312]
[1736922817359,1.06693619,699.57,698.57,1.07144312]
[1736922818366,1.06693619,699.57,698.58,1.07144312]
[1736922819365,1.06693619,699.56,698.59,1.07144312]
[1736922820466,0.854,699.58,698.39,0.28637294]
[1736922822769,1.113,699.58,698.39,0.28637294]
[1736922846282,0.2628784,699.57,698.39,0.28637294]
[1736922846677,1.06693619,699.6,698.39,0.28637294]
[1736922847085,0.26287876,699.59,698.39,0.28637294]
[1736922847584,1.06693619,699.52,698.46,1.07144312]
[1736922848487,1.06693619,699.53,698.45,1.07144312]
[1736922850687,1.06693619,699.54,698.46,1.07144312]
[1736922851487,1.113,699.59,698.39,0.28637294]
[1736922851488,1.06693619,699.53,698.44,1.07144312]
[1736922852487,1.06693619,699.56,698.41,1.07144312]
[1736922853581,1.06693619,699.56,698.39,0.28637294]
[1736922853582,1.06693619,699.55,698.42,1.07144312]
[1736922855490,1.06693619,699.54,698.44,1.07144312]
[1736922856589,1.06693619,699.53,698.43,1.07144312]
[1736922857896,1.06693619,699.58,698.39,0.28637294]
[1736922858993,1.06693619,699.56,698.39,1.35781606]
[1736922859890,1.06693619,699.56,698.4,1.07144312]
[1736922860798,1.06693619,699.56,698.39,1.35781606]
[1736922861790,1.06693619,699.52,698.42,1.07144312]
[1736922862897,1.06693619,699.52,698.43,1.07144312]
[1736922864498,1.06693619,699.51,698.44,1.07144312]
[1736922865395,1.113,699.59,698.39,0.28637294]
[1736922866500,2.17993619,699.59,698.39,0.28637294]
[1736922867695,1.06693619,699.56,698.39,0.28637294]
[1736922870902,0.259,699.59,698.39,0.28637294]
[1736922871804,1.112,699.59,698.39,0.28637294]
[1736922888519,1.112,699.59,698.39,1.35781606]
[1736922890421,1.112,699.59,698.39,0.28637294]
[1736922931057,2.17893619,699.59,698.39,0.28637294]
[1736922931962,1.06693619,699.57,698.4,1.07144312]
[1736922933063,1.06693619,699.59,698.42,1.07144312]
[1736922933255,1.32593619,699.59,698.42,1.07144312]
[1736922933457,2.17793619,699.59,698.42,1.07144312]
[1736922934061,1.06693619,699.58,698.42,1.07144312]
[1736922935059,1.06693619,699.57,698.4,1.07144312]
[1736922936161,1.06693619,699.57,698.42,1.07144312]
[1736922937063,1.06693619,699.57,698.45,1.07144312]
[1736922938067,1.06693619,699.56,698.44,1.07144312]
[1736922939267,1.06693619,699.57,698.46,1.07144312]
[1736922939467,0.2628794,699.56,698.46,1.07144312]
[1736922940168,0.2628794,699.56,698.39,0.28637294]
[1736922940169,1.06693619,699.55,698.43,1.07144312]
[1736922940467,0.2628794,699.54,698.43,1.07144312]
[1736922940861,1.06693619,699.55,698.43,1.07144312]
[1736922941469,1.06693619,699.52,698.41,1.07144312]
[1736922942570,1.06693619,699.53,698.42,1.07144312]
[1736922943966,1.111,699.59,698.39,0.28637294]
[1736922943967,1.06693619,699.5,698.39,0.28637294]
[1736922945269,1.06693619,699.49,698.39,0.28637294]
[1736922946172,1.06693619,699.5,698.39,0.28637294]
[1736922946973,1.06693619,699.51,698.39,0.28637294]
[1736922948166,1.06693619,699.5,698.39,0.28637294]
[1736922949173,1.111,699.59,698.39,0.28637294]
[1736922949174,1.06693619,699.49,698.39,0.28637294]
[1736922951575,1.91893619,699.49,698.39,1.35781606]
[1736922953777,1.06693619,699.48,698.4,1.07144312]
[1736922954579,1.06693619,699.48,698.41,1.07144312]
[1736922955475,1.32593619,699.48,698.41,1.07144312]
[1736922956675,1.06693619,699.45,698.45,1.07144312]
[1736922957580,1.06693619,699.46,698.46,1.07144312]
[1736922959984,0.259,699.48,698.51,1.07144312]
[1736922960784,0.259,699.48,698.53,1.07144312]
[1736922961785,0.259,699.48,698.5,1.07144312]
[1736922962690,0.259,699.48,698.48,1.07144312]
[1736922963590,0.259,699.48,698.5,1.07144312]
[1736922964487,0.259,699.48,698.39,0.28637294]
[1736922964488,0.259,699.48,698.49,1.07144312]
[1736922965689,0.259,699.48,698.47,1.07144312]
[1736922966684,0.259,699.48,698.44,1.07144312]
[1736922967791,0.259,699.48,698.43,1.07144312]
[1736922968997,1.111,699.48,698.44,1.07144312]
[1736922970191,1.111,699.48,698.39,1.35781606]
[1736922972191,1.111,699.48,698.39,0.28637294]
[1736922973594,1.111,699.48,698.4,1.07144312]
[1736922973890,1.111,699.48,698.41,0.28636474]
[1736922981794,1.111,699.48,698.46,1.07144312]
[1736922982001,1.111,699.48,698.46,1.35778736]
[1736922984096,1.111,699.48,698.46,0.28634424]
[1736922986798,1.111,699.48,698.46,1.35778736]
[1736922987698,1.111,699.48,698.46,0.28634424]
[1736922988704,1.111,699.48,698.46,1.35778736]
[1736922989601,1.111,699.48,698.47,1.07144312]
[1736922990705,1.111,699.48,698.48,1.07144312]
[1736922991305,1.111,699.48,698.46,0.28634424]
[1736922994707,1.111,699.48,698.46,1.35778736]
[1736922995703,1.111,699.48,698.46,0.28634424]
[1736922996806,1.111,699.48,698.46,1.35778736]
[1736922997606,1.111,699.48,698.47,1.07144312]
[1736922998005,1.111,699.48,698.48,0.28633604]
[1736923001811,1.111,699.48,698.48,1.35777916]
[1736923003007,1.111,699.48,698.5,1.07144312]
[1736923006507,1.111,699.48,698.54,1.07144312]
[1736923007811,1.111,699.48,698.48,0.28633604]
[1736923008714,1.111,699.48,698.49,1.07144312]
[1736923008913,1.111,699.48,698.5,0.28632784]
[1736923017015,1.111,699.48,698.51,1.07144312]
[1736923020221,1.111,699.48,698.5,0.28632784]
[1736923030235,1.111,699.48,698.57,1.07144312]
[1736923032038,1.111,699.48,698.58,1.07144312]
[1736923033036,1.111,699.48,698.57,1.07144312]
[1736923034543,1.111,699.48,698.6,1.07144312]
[1736923036738,1.111,699.48,698.58,1.07144312]
[1736923037845,1.111,699.48,698.5,0.28632784]
[1736923047846,1.111,699.48,698.65,1.07144312]
[1736923049353,1.111,699.48,698.64,1.07144312]
[1736923051456,1.111,699.48,698.63,1.07144312]
[1736923052055,1.111,699.48,698.5,0.28632784]
[1736923053358,1.111,699.48,698.63,1.07242523]
[1736923054957,1.111,699.48,698.61,1.07242523]
[1736923056352,1.111,699.48,698.5,0.28632784]
[1736923056353,1.111,699.48,698.62,1.07242523]
[1736923061159,1.111,699.48,698.5,0.28632784]
[1736923061160,1.111,699.48,698.61,1.07242523]
[1736923062260,1.111,699.48,698.62,1.07242523]
[1736923063160,1.111,699.48,698.63,1.07242523]
[1736923063957,1.111,699.48,698.62,1.07242523]
[1736923064861,1.111,699.48,698.63,1.07242523]
[1736923068566,1.111,699.48,698.64,1.07242523]
[1736923069766,1.111,699.48,698.68,1.07242523]
[1736923074262,1.111,699.48,698.5,0.28632784]
[1736923074263,1.111,699.48,698.67,1.07242523]
[1736923077872,1.111,699.48,698.5,0.28632784]
[1736923077873,1.111,699.48,698.64,1.07242523]
[1736923081976,1.111,699.48,698.65,1.07242523]
[1736923086579,1.111,699.48,698.67,1.07242523]
[1736923087780,1.111,699.48,698.66,1.07242523]
[1736923095078,1.111,699.48,698.64,1.07242523]
[1736923095983,1.111,699.48,698.65,1.07242523]
[1736923099386,1.111,699.48,698.5,0.28632784]
[1736923101386,1.111,699.48,698.55,1.07242523]
[1736923102184,1.111,699.48,698.56,0.28630325]
[1736923104787,1.111,699.48,698.58,1.07242523]
[1736923104980,1.111,699.48,698.59,0.28629095]
[1736923125504,1.111,699.48,698.59,1.35871618]
[1736923126504,1.111,699.48,698.61,1.07242523]
[1736923126704,1.111,699.48,698.63,0.28627456]
[1736923127704,1.111,699.48,698.63,1.35869979]
[1736923128704,1.111,699.48,698.64,1.07242523]
[1736923128905,1.111,699.48,698.65,0.28626637]
[1736923129506,1.111,699.48,698.66,1.07242523]
[1736923130400,1.111,699.48,698.68,1.07242523]
[1736923130805,1.111,699.48,698.69,0.28624998]
[1736923131606,1.111,699.48,698.71,1.07242523]
[1736923131799,1.111,699.48,698.72,0.28623769]
[1736923132801,0.259,699.48,698.78,1.07242523]
[1736923133007,0.259,699.48,698.79,0.28620901]
[1736923133809,0.259,699.48,698.86,1.07242523]
[1736923134105,1.109,699.48,698.86,1.07242523]
[1736923134710,1.109,699.48,698.87,1.07242523]
[1736923136806,1.109,699.48,698.88,1.07242523]
[1736923141214,1.109,699.48,698.94,1.07242523]
[1736923142015,1.109,699.48,698.92,1.07242523]
[1736923143216,1.109,699.48,698.79,0.28620901]
[1736923143217,1.109,699.48,698.91,1.07242523]
[1736923144320,1.109,699.48,698.79,0.28620901]
[1736923144321,1.109,699.48,698.9,1.07242523]
[1736923145520,1.109,699.48,698.79,0.28620901]
[1736923156324,1.109,699.48,698.85,1.07242523]
[1736923158323,1.109,699.48,698.79,1.35863424]
[1736923159122,1.109,699.48,698.8,1.07242523]
[1736923159422,1.109,699.48,698.81,0.28620082]
[1736923160924,1.109,699.48,698.81,1.35862605]
[1736923164230,1.109,699.48,698.84,1.07242523]
[1736923165431,1.109,699.48,698.83,1.07242523]
[1736923166728,1.109,699.48,698.81,0.28620082]
[1736923177340,1.109,699.48,698.85,1.07242523]
[1736923178538,1.109,699.48,698.89,1.07242523]
[1736923179539,1.109,699.48,698.9,1.07242523]
[1736923181437,1.109,699.48,698.92,1.07242523]
[1736923182741,1.109,699.48,698.91,1.07242523]
[1736923185942,1.109,699.48,698.92,1.07242523]
[1736923187041,1.109,699.48,698.82,1.07242523]
[1736923188145,1.109,699.48,698.81,0.28620082]
[1736923188146,1.109,699.48,698.83,1.07242523]
[1736923189043,1.109,699.48,698.82,1.07242523]
[1736923190047,1.109,699.48,698.83,1.07242523]
[1736923190945,1.109,699.48,698.82,1.07242523]
[1736923193147,1.109,699.48,698.81,0.28620082]
[1736923195448,1.109,699.48,698.82,1.07242523]
[1736923196751,1.109,699.48,698.9,1.07242523]
[1736923197544,1.109,699.48,698.91,1.07242523]
[1736923198750,1.109,699.48,698.81,0.28620082]
[1736923198751,1.109,699.48,698.88,1.07242523]
[1736923200952,1.109,699.48,698.89,1.07242523]
[1736923201957,1.109,699.48,698.9,1.07242523]
[1736923203054,1.109,699.48,698.93,1.07242523]
[1736923204055,1.109,699.48,698.91,1.07242523]
[1736923205458,1.109,699.48,698.9,1.07242523]
[1736923206756,1.109,699.48,698.91,1.07242523]
[1736923207962,1.109,699.48,698.9,1.07242523]
[1736923210062,1.109,699.48,698.92,1.07242523]
[1736923210964,1.109,699.48,698.89,1.07242523]
[1736923212067,1.109,699.48,698.9,1.07242523]
[1736923213359,1.109,699.48,698.88,1.07242523]
[1736923214064,1.109,699.48,698.87,1.07242523]
[1736923215164,1.109,699.48,698.88,1.07242523]
[1736923216267,1.109,699.48,698.87,1.07242523]
[1736923217369,1.109,699.48,698.88,1.07242523]
[1736923218663,1.109,699.48,698.89,1.07242523]
[1736923220468,1.109,699.48,698.93,1.07242523]
[1736923221467,1.109,699.48,698.86,1.07242523]
[1736923222773,1.109,699.48,698.89,1.07242523]
[1736923226074,1.109,699.48,698.81,0.28620082]
[1736923226075,1.109,699.48,698.87,1.07242523]
[1736923228379,1.109,699.48,698.86,1.07242523]
[1736923230078,1.109,699.48,698.85,1.07242523]
[1736923231278,1.109,699.48,698.91,1.07242523]
[1736923232977,1.109,699.48,698.93,1.07242523]
[1736923233879,1.109,699.48,698.95,1.07242523]
[1736923235577,1.109,699.48,698.81,0.28620082]
[1736923235578,1.109,699.48,698.94,1.07242523]
[1736923243690,1.109,699.48,698.93,1.07242523]
[1736923244690,1.109,699.48,698.92,1.07242523]
[1736923245894,1.109,699.48,698.93,1.07242523]
[1736923246796,1.109,699.48,698.91,1.07242523]
[1736923247893,1.109,699.48,698.35,2.18953484]
[1736923247894,1.109,699.48,698.89,1.07242523]
[1736923248890,1.109,699.48,698.9,1.07242523]
[1736923249994,1.109,699.48,698.81,1.07242523]
[1736923250791,1.109,699.48,698.8,1.07242523]
[1736923251789,1.109,699.48,698.81,1.07242523]
[1736923254398,1.109,699.48,698.82,1.07242523]
[1736923254800,1.06678926,700.01,698.82,1.07242523]
[1736923255502,1.06678926,700.01,698.83,1.07242523]
[1736923256002,1.06678926,700.01,698.2,2.18953484]
[1736923256003,1.06678926,700.3,698.62,1.07242523]
[1736923257203,0.8202207,701.16,698.62,1.07242523]
[1736923257204,1.06678926,700.34,698.62,1.07242523]
[1736923258305,1.06678926,700.34,698.6,1.07242523]
[1736923259106,1.06678926,700.34,697.7,2.18953484]
[1736923259107,1.06678926,700.35,698.59,1.07242523]
[1736923260109,1.06678926,700.36,698.58,1.07242523]
[1736923261312,1.06678926,700.34,698.56,1.07242523]
[1736923262505,1.06678926,700.34,698.55,1.07242523]
[1736923264816,1.06678926,700.26,698.69,1.07242523]
[1736923265009,0.26267294,700.25,698.69,1.07242523]
[1736923265416,0.26267294,700.25,698.56,2.79122884]
[1736923265616,0.26267294,700.24,698.57,2.5735993]
[1736923265812,0.26267294,700.23,698.58,2.5735993]
[1736923266016,0.97618474,701.5,698.59,2.5735993]
[1736923266312,0.97618382,701.49,698.6,5.36482814]
[1736923266514,0.97618382,701.48,698.61,2.5735993]
[1736923266715,0.97618382,701.47,698.62,2.5735993]
[1736923267017,1.06668197,700.17,698.87,1.07018681]
[1736923267615,1.06668197,700.46,698.6,2.79122884]
[1736923267818,1.06668197,700.46,698.5,1.07018681]
[1736923268610,1.06668197,700.48,698.53,1.07018681]
[1736923269315,0.26263779,700.47,698.54,2.57244396]
[1736923269515,0.26263779,700.47,698.55,5.3618628]
[1736923269716,0.28552665,700.46,698.57,0.28629915]
[1736923269913,0.26263779,700.45,698.58,2.57244396]
[1736923270117,0.26263779,700.45,698.59,2.57244396]
[1736923270317,0.26263779,700.45,698.6,2.57244396]
[1736923270510,0.26263779,700.45,698.61,2.57244396]
[1736923270716,1.06668197,700.23,699.01,1.07018681]
[1736923271912,1.06668197,700.3,699.04,1.07018681]
[1736923272714,1.06668197,700.34,698.98,1.07018681]
[1736923273920,1.06668197,700.38,698.98,1.07018681]
[1736923274121,0.26261258,700.37,698.98,1.07018681]
[1736923275119,0.26261258,700.37,698.96,1.07018681]
[1736923275419,0.26261258,700.36,698.96,1.07018681]
[1736923275724,0.26261258,700.35,698.96,1.07018681]
[1736923275922,1.06668197,700.39,698.96,1.07018681]
[1736923276323,0.26261291,700.38,698.96,1.07018681]
[1736923277025,0.26261291,700.38,698.97,0.28613531]
[1736923277526,0.26261291,700.37,698.97,0.28613531]
[1736923277728,0.26261291,700.36,698.97,0.28613531]
[1736923277920,1.06668197,700.42,698.97,0.28613531]
[1736923278230,0.26261176,700.41,698.97,0.28613531]
[1736923278726,0.26261176,700.4,698.97,0.28613531]
[1736923278927,1.06668197,700.43,698.97,0.28613531]
[1736923279229,0.26261293,700.42,698.97,0.28613531]
[1736923279622,0.26261293,700.41,698.97,0.28613531]
[1736923279827,0.26261293,700.4,698.97,0.28613531]
[1736923280027,0.26261293,700.39,698.97,0.28613531]
[1736923280323,0.26261293,700.38,698.97,0.28613531]
[1736923280528,1.06668197,700.45,698.97,0.28613531]
[1736923280729,0.26261284,700.44,698.97,0.28613531]
[1736923281327,1.32929481,700.44,698.97,0.28613531]
[1736923281527,0.26261284,700.43,698.97,0.28613531]
[1736923281723,1.06668197,700.44,698.97,0.28613531]
[1736923281929,0.26261321,700.43,698.97,0.28613531]
[1736923282530,1.32929518,700.43,698.97,0.28613531]
[1736923282727,0.26261321,700.42,698.97,0.28613531]
[1736923283625,0.26261321,700.41,698.97,0.28613531]
[1736923283832,0.26261321,700.4,698.97,0.28613531]
[1736923284031,1.06668197,700.44,698.97,0.28613531]
[1736923284032,0.26261321,700.39,698.97,0.28613531]
[1736923284233,0.26261321,700.38,698.97,0.28613531]
[1736923284430,0.26261321,700.43,698.97,0.28613531]
[1736923284733,0.26260875,700.42,698.97,0.28613531]
[1736923285033,0.26260875,700.41,698.97,0.28613531]
[1736923285234,0.26260875,700.43,698.97,0.28613531]
[1736923285433,0.262609,700.42,698.97,0.28613531]
[1736923285639,0.262609,700.41,698.97,0.28613531]
[1736923285829,0.262609,700.4,698.97,0.28613531]
[1736923286032,0.262609,700.39,698.97,0.28613531]
[1736923286236,0.262609,700.38,698.97,0.28613531]
[1736923286434,0.262609,700.37,698.97,0.28613531]
[1736923286637,0.262609,700.36,698.97,0.28613531]
[1736923286837,0.262609,700.35,698.97,0.28613531]
[1736923287038,1.06668197,700.43,698.97,0.28613531]
[1736923287237,0.26261256,700.42,698.97,0.28613531]
[1736923287434,0.26261256,700.41,698.97,0.28613531]
[1736923288440,1.32929453,700.41,698.97,0.28613531]
[1736923288634,0.26261256,700.4,698.97,0.28613531]
[1736923289240,1.06668197,700.35,699.05,1.07018681]
[1736923289433,1.06668197,700.35,699.06,0.28609847]
[1736923290537,1.06668197,700.45,699.06,0.28609847]
[1736923290737,0.26261633,700.44,699.06,0.28609847]
[1736923291339,1.06668197,700.43,699.06,0.28609847]
[1736923291644,0.26261633,700.42,699.06,0.28609847]
[1736923292542,1.06668197,700.43,699.06,0.28609847]
[1736923293742,1.35220862,700.46,699.06,0.28609847]
[1736923294544,1.06668197,700.45,699.06,0.28609847]
[1736923298147,1.06668197,700.44,699.06,0.28609847]
[1736923299147,1.06668197,700.43,699.06,0.28609847]
[1736923300147,1.06668197,700.38,699.06,0.28609847]
[1736923301048,1.06668197,700.36,699.06,0.28609847]
[1736923301855,1.06668197,700.29,699.06,0.28609847]
[1736923302657,0.28552665,700.46,699.06,0.28609847]
[1736923302658,1.06668197,700.25,699.06,0.28609847]
[1736923304150,0.28552665,700.46,699.06,0.28609847]
[1736923304354,0.26263132,700.45,699.06,0.28609847]
[1736923305855,1.06761706,700.22,699.06,0.28609847]
[1736923307861,1.06761706,700.23,699.06,0.28609847]
[1736923308755,1.06761706,700.22,699.06,0.28609847]
[1736923310061,1.06761706,700.16,699.09,1.07114283]
[1736923312255,1.06761706,700.15,699.11,1.07114283]
[1736923313060,1.06761706,700.14,699.13,1.07114283]
[1736923317160,1.06761706,700.15,699.13,1.07114283]
[1736923317961,1.06761706,700.14,699.13,1.07114283]
[1736923320059,0.28552665,700.46,699.06,0.28609847]
[1736923320060,1.06761706,700.21,699.06,0.28609847]
[1736923324261,1.06761706,700.22,699.06,0.28609847]
[1736923327466,0.28552665,700.46,699.06,0.28609847]
[1736923327467,1.06761706,700.23,699.06,0.28609847]
[1736923328566,0.26263394,700.22,699.06,0.28609847]
[1736923328766,1.330251,700.22,699.06,0.28609847]
[1736923328963,1.06761706,700.22,699.06,0.28609847]
[1736923329763,0.28552665,700.46,699.15,1.07114283]
[1736923329764,1.06761706,700.14,699.15,1.07114283]
[1736923330870,1.06761706,700.16,699.1,1.07114283]
[1736923331969,1.06761706,700.17,699.1,1.07114283]
[1736923334372,1.06761706,700.2,699.16,1.07114283]
[1736923335673,1.06761706,700.23,699.13,1.07114283]
[1736923336872,1.06761706,700.24,699.14,1.07114283]
[1736923337765,1.06761706,700.23,699.14,1.07114283]
[1736923339170,1.06761706,700.24,699.15,1.07114283]
[1736923340174,1.06761706,700.21,699.15,1.07114283]
[1736923341373,1.06761706,700.22,699.15,1.07114283]
[1736923342473,1.06761706,700.23,699.15,1.07114283]
[1736923343580,1.06761706,700.22,699.16,1.07114283]
[1736923344077,0.81984151,700.45,699.06,0.28609847]
[1736923344278,0.26261233,700.44,699.06,0.28609847]
[1736923345079,0.81984151,700.45,699.06,0.28609847]
[1736923345274,0.26261338,700.44,699.06,0.28609847]
[1736923345680,1.06715418,700.22,699.15,1.0705646]
[1736923346480,0.28552665,700.46,699.15,1.0705646]
[1736923346481,1.06715418,700.23,699.15,1.0705646]
[1736923348682,1.06715418,700.22,699.15,1.0705646]
[1736923349984,1.06715418,700.22,699.17,1.0705646]
[1736923350782,1.06715418,700.22,699.08,1.0705646]
[1736923350783,1.06715418,700.23,699.14,1.0705646]
[1736923352984,1.06715418,700.24,699.06,0.28609847]
[1736923354283,1.06715418,700.22,699.06,0.28609847]
[1736923355188,1.06715418,700.38,699.06,0.28609847]
[1736923358491,0.28552665,700.46,699.06,0.28609847]
[1736923358492,1.06715418,700.37,699.06,0.28609847]
[1736923359192,1.06715418,700.38,699.06,0.28609847]
[1736923359691,1.06715418,700.37,699.06,0.28609847]
[1736923360892,1.06715418,700.35,699.06,0.28609847]
[1736923362096,1.06715418,700.33,699.06,0.28609847]
[1736923364699,0.26266767,700.32,699.06,0.28609847]
[1736923365500,1.06715418,700.17,699.06,0.28609847]
[1736923367601,1.06715418,700.18,699.06,0.28609847]
[1736923368400,1.06715418,700.19,699.06,0.28609847]
[1736923369203,1.06715418,700.2,699.06,0.28609847]
[1736923371606,0.26267144,700.19,699.06,0.28609847]
[1736923371799,1.06715418,700.2,699.06,0.28609847]
[1736923372700,0.26267152,700.19,699.06,0.28609847]
[1736923372899,0.26267065,700.18,699.06,0.28609847]
[1736923373206,0.26267065,700.17,699.06,0.28609847]
[1736923373406,0.28552665,700.46,699.06,0.28609847]
[1736923373407,1.06715418,700.14,699.06,0.28609847]
[1736923373605,0.26267065,700.13,699.06,0.28609847]
[1736923374405,1.06715418,700.15,699.06,0.28609847]
[1736923374605,0.26267144,700.14,699.06,0.28609847]
[1736923375509,1.06715418,700.16,699.06,0.28609847]
[1736923375808,0.26267224,700.15,699.06,0.28609847]
[1736923376412,0.26266646,700.14,699.06,0.28609847]
[1736923376607,1.06715418,700.16,699.06,0.28609847]
[1736923376809,1.32982307,700.15,699.06,0.28609847]
[1736923377009,1.06715418,700.15,699.06,0.28609847]
[1736923378014,1.06715418,700.17,699.06,0.28609847]
[1736923378509,0.26266564,700.16,699.06,0.28609847]
[1736923378711,1.06715418,700.17,699.06,0.28609847]
[1736923378912,0.26266506,700.16,699.06,0.28609847]
[1736923379309,1.06715418,700.17,699.06,0.28609847]
[1736923380414,1.06715418,700.18,699.06,0.28609847]
[1736923381412,1.06715418,700.33,699.06,0.28609847]
[1736923383516,1.06715418,700.32,699.06,0.28609847]
[1736923384717,1.06715418,700.29,699.06,0.28609847]
[1736923386817,1.06715418,700.27,699.06,0.28609847]
[1736923387818,1.06715418,700.17,699.06,0.28609847]
[1736923389119,1.06715418,700.18,699.06,0.28609847]
[1736923390418,1.06715418,700.17,699.06,0.28609847]
[1736923391515,1.06715418,700.18,699.06,0.28609847]
[1736923392619,1.06715418,700.14,699.06,0.28609847]
[1736923393519,1.06715418,700.13,699.06,0.28609847]
[1736923395824,1.06715418,700.12,699.06,0.28609847]
[1736923396823,1.06715418,700.1,699.06,0.28609847]
[1736923398024,1.06715418,700.09,699.06,0.28609847]
[1736923399226,1.06715418,700.06,699.06,0.28609847]
[1736923400020,1.06715418,700.07,699.06,0.28609847]
[1736923402328,1.06715418,700.04,699.06,0.28609847]
[1736923403123,1.06715418,700.03,699.06,0.28609847]
[1736923405233,1.06715418,700.05,699.06,0.28609847]
[1736923410039,0.82032036,700.43,699.06,0.28609847]
[1736923410040,1.06715418,700.13,699.06,0.28609847]
[1736923414543,0.2855348,700.44,699.06,0.28609847]
[1736923414544,1.06715418,700.14,699.06,0.28609847]
[1736923415939,1.06715418,700.12,699.06,0.28609847]
[1736923418347,0.82073302,700.43,699.06,0.28609847]
[1736923418348,1.06715418,700.11,699.06,0.28609847]
[1736923419452,1.06715418,700.04,699.06,0.28609847]
[1736923420753,1.06715418,699.98,699.06,0.28609847]
[1736923423456,0.82073302,700.43,699.06,0.28609847]
[1736923423457,1.06715418,699.96,699.06,0.28609847]
[1736923424356,1.06715418,700.12,699.06,0.28609847]
[1736923425847,1.06715418,700.53,699.06,0.28609847]
[1736923425848,1.06715418,700.13,699.06,0.28609847]
[1736923427955,1.06715418,700.14,699.06,0.28609847]
[1736923430057,1.06715418,700.16,699.06,0.28609847]